[Event "Titled Tuesday Blitz February 22 Early 2022"]
[White "Mikhailovsky, Vladimir"]
[Black "Demchenko, Anton"]
[WhiteFideId "34105414"]
[BlackFideId "4160258"]
[WhiteElo "2371"]
[BlackElo "2539"]
[Result "0-1"]
[Round "03"]
[TimeControl "180+1"]
[Date "2022.02.22"]
[WhiteClock "0:00:01"]
[BlackClock "0:00:23"]

1. d4 {[%clk 0:03:00]}  Nf6 {[%clk 0:02:59]} 2. c4 {[%clk 0:03:00]}  d6 {[%clk 0:02:59]} 3. Nc3 {[%clk 0:03:00]}  e5 {[%clk 0:02:59]} 4. Nf3 {[%clk 0:02:54]}  Nbd7 {[%clk 0:02:59]} 5. e4 {[%clk 0:02:53]}  Be7 {[%clk 0:02:59]} 6. Be2 {[%clk 0:02:46]}  c6 {[%clk 0:03:00]} 7. O-O {[%clk 0:02:45]}  Qc7 {[%clk 0:03:00]} 8. Re1 {[%clk 0:02:43]}  Nf8 {[%clk 0:03:01]} 9. b3 {[%clk 0:02:41]}  Ng6 {[%clk 0:03:01]} 10. Bb2 {[%clk 0:02:42]}  O-O {[%clk 0:02:58]} 11. Qd2 {[%clk 0:02:40]}  Re8 {[%clk 0:02:54]} 12. Rad1 {[%clk 0:02:40]}  Bf8 {[%clk 0:02:49]} 13. h3 {[%clk 0:02:33]}  a6 {[%clk 0:02:46]} 14. Bf1 {[%clk 0:02:33]}  b5 {[%clk 0:02:32]} 15. g3 {[%clk 0:02:07]}  b4 {[%clk 0:02:26]} 16. Na4 {[%clk 0:02:04]}  c5 {[%clk 0:02:27]} 17. dxe5 {[%clk 0:01:20]}  dxe5 {[%clk 0:02:27]} 18. Bg2 {[%clk 0:01:20]}  Bb7 {[%clk 0:02:25]} 19. Nh2 {[%clk 0:01:20]}  Bc6 {[%clk 0:02:10]} 20. Nf1 {[%clk 0:01:16]}  Qb7 {[%clk 0:02:06]} 21. f3 {[%clk 0:01:12]}  Bxa4 {[%clk 0:01:54]} 22. bxa4 {[%clk 0:01:12]}  Qc6 {[%clk 0:01:55]} 23. Qc2 {[%clk 0:01:12]}  Nd7 {[%clk 0:01:24]} 24. Ne3 {[%clk 0:01:11]}  a5 {[%clk 0:01:23]} 25. h4 {[%clk 0:01:01]}  h5 {[%clk 0:01:06]} 26. Nd5 {[%clk 0:00:44]}  Nb6 {[%clk 0:01:07]} 27. Nxb6 {[%clk 0:00:43]}  Qxb6 {[%clk 0:01:07]} 28. Bh3 {[%clk 0:00:44]}  Rad8 {[%clk 0:01:00]} 29. Bd7 {[%clk 0:00:41]}  Re7 {[%clk 0:00:58]} 30. Bb5 {[%clk 0:00:33]}  Re6 {[%clk 0:00:41]} 31. Kg2 {[%clk 0:00:31]}  Be7 {[%clk 0:00:36]} 32. Rd5 {[%clk 0:00:31]}  Bxh4 {[%clk 0:00:31]} 33. gxh4 {[%clk 0:00:23]}  Nxh4+ {[%clk 0:00:26]} 34. Kf2 {[%clk 0:00:16]}  Rf6 {[%clk 0:00:26]} 35. Re3 {[%clk 0:00:16]}  Rg6 {[%clk 0:00:26]} 36. Re2 {[%clk 0:00:08]}  Qf6 {[%clk 0:00:24]} 37. Rxd8+ {[%clk 0:00:06]}  Qxd8 {[%clk 0:00:25]} 38. Qd2 {[%clk 0:00:04]}  Qf6 {[%clk 0:00:24]} 39. Qe3 {[%clk 0:00:04]}  Ng2 {[%clk 0:00:23]} 40. Qxc5 {[%clk 0:00:03]}  Qh4+ {[%clk 0:00:24]} 41. Kf1 {[%clk 0:00:02]}  Nf4 {[%clk 0:00:23]} 42. Rf2 {[%clk 0:00:01]}  Qh1# {[%clk 0:00:23]} 0-1


[Site "https://www.chess.com"]

[Event "Titled Tuesday Blitz February 22 Early 2022"]
[White "Nazari, Arad"]
[Black "Krzywda, Andrzej"]
[WhiteFideId "12577324"]
[BlackFideId "1114565"]
[WhiteElo "2120"]
[BlackElo "2098"]
[Result "0-1"]
[Round "03"]
[TimeControl "180+1"]
[Date "2022.02.22"]
[WhiteClock "0:00:01"]
[BlackClock "0:00:39"]

1. Nf3 {[%clk 0:03:00]}  c5 {[%clk 0:02:58]} 2. e3 {[%clk 0:02:49]}  g6 {[%clk 0:02:56]} 3. d4 {[%clk 0:02:35]}  Bg7 {[%clk 0:02:56]} 4. c3 {[%clk 0:02:26]}  Qc7 {[%clk 0:02:54]} 5. Bd3 {[%clk 0:02:21]}  Nf6 {[%clk 0:02:54]} 6. Nbd2 {[%clk 0:02:21]}  O-O {[%clk 0:02:53]} 7. O-O {[%clk 0:02:13]}  d5 {[%clk 0:02:48]} 8. dxc5 {[%clk 0:02:02]}  Qxc5 {[%clk 0:02:47]} 9. Qe2 {[%clk 0:02:02]}  Nbd7 {[%clk 0:02:41]} 10. e4 {[%clk 0:01:45]}  dxe4 {[%clk 0:02:40]} 11. Nxe4 {[%clk 0:01:46]}  Nxe4 {[%clk 0:02:40]} 12. Bxe4 {[%clk 0:01:41]}  Nf6 {[%clk 0:02:40]} 13. Bd3 {[%clk 0:01:14]}  Bg4 {[%clk 0:02:15]} 14. h3 {[%clk 0:01:11]}  Bxf3 {[%clk 0:02:15]} 15. Qxf3 {[%clk 0:01:11]}  Qb6 {[%clk 0:02:13]} 16. Qe2 {[%clk 0:01:02]}  Rfd8 {[%clk 0:02:04]} 17. Be3 {[%clk 0:01:00]}  Qc7 {[%clk 0:02:05]} 18. Rfd1 {[%clk 0:00:54]}  Nd5 {[%clk 0:02:04]} 19. Bg5 {[%clk 0:00:47]}  Bf6 {[%clk 0:01:53]} 20. Be4 {[%clk 0:00:25]}  Nf4 {[%clk 0:01:39]} 21. Bxf4 {[%clk 0:00:24]}  Qxf4 {[%clk 0:01:40]} 22. Bxb7 {[%clk 0:00:23]}  Rxd1+ {[%clk 0:01:38]} 23. Rxd1 {[%clk 0:00:22]}  Rb8 {[%clk 0:01:38]} 24. Bd5 {[%clk 0:00:18]}  h5 {[%clk 0:01:24]} 25. Bb3 {[%clk 0:00:18]}  h4 {[%clk 0:01:19]} 26. Qd3 {[%clk 0:00:16]}  Kg7 {[%clk 0:01:17]} 27. Re1 {[%clk 0:00:11]}  Be5 {[%clk 0:01:10]} 28. Qd5 {[%clk 0:00:11]}  Bd6 {[%clk 0:00:57]} 29. Re4 {[%clk 0:00:09]}  Qc1+ {[%clk 0:00:53]} 30. Qd1 {[%clk 0:00:02]}  Qxd1+ {[%clk 0:00:52]} 31. Bxd1 {[%clk 0:00:02]}  Rxb2 {[%clk 0:00:53]} 32. Kf1 {[%clk 0:00:01]}  Rxa2 {[%clk 0:00:53]} 33. Ra4 {[%clk 0:00:02]}  Rd2 {[%clk 0:00:38]} 34. Ke1 {[%clk 0:00:01]}  Rd3 {[%clk 0:00:39]} 0-1


[Site "https://www.chess.com"]

[Event "Titled Tuesday Blitz February 22 Early 2022"]
[White "Nesterov, Arseniy"]
[Black "Agibileg, Uurtsaikh"]
[WhiteFideId "24198455"]
[BlackFideId "4901606"]
[WhiteElo "2489"]
[BlackElo "2205"]
[Result "0-1"]
[Round "03"]
[TimeControl "180+1"]
[Date "2022.02.22"]
[WhiteClock "0:00:07"]
[BlackClock "0:00:11"]

1. d4 {[%clk 0:03:00]}  Nf6 {[%clk 0:02:56]} 2. c4 {[%clk 0:03:00]}  g6 {[%clk 0:02:56]} 3. Nc3 {[%clk 0:03:00]}  Bg7 {[%clk 0:02:56]} 4. e4 {[%clk 0:03:00]}  d6 {[%clk 0:02:57]} 5. Be2 {[%clk 0:03:01]}  O-O {[%clk 0:02:57]} 6. Be3 {[%clk 0:03:01]}  e5 {[%clk 0:02:57]} 7. d5 {[%clk 0:03:01]}  Na6 {[%clk 0:02:57]} 8. g4 {[%clk 0:03:00]}  Nc5 {[%clk 0:02:58]} 9. f3 {[%clk 0:03:00]}  h5 {[%clk 0:02:58]} 10. g5 {[%clk 0:03:00]}  Nh7 {[%clk 0:02:58]} 11. h4 {[%clk 0:03:00]}  f6 {[%clk 0:02:58]} 12. gxf6 {[%clk 0:03:00]}  Bxf6 {[%clk 0:02:51]} 13. Bf2 {[%clk 0:03:00]}  a5 {[%clk 0:02:49]} 14. Qd2 {[%clk 0:02:59]}  a4 {[%clk 0:02:42]} 15. O-O-O {[%clk 0:02:57]}  Bg7 {[%clk 0:02:37]} 16. Kb1 {[%clk 0:02:55]}  Rf4 {[%clk 0:02:36]} 17. Nh3 {[%clk 0:02:49]}  Bxh3 {[%clk 0:02:36]} 18. Rxh3 {[%clk 0:02:50]}  Nf8 {[%clk 0:02:35]} 19. Rg1 {[%clk 0:02:43]}  c6 {[%clk 0:02:28]} 20. Be3 {[%clk 0:02:24]}  Qf6 {[%clk 0:02:23]} 21. dxc6 {[%clk 0:02:04]}  bxc6 {[%clk 0:02:22]} 22. Nd5 {[%clk 0:02:01]}  Qe6 {[%clk 0:01:43]} 23. Bxf4 {[%clk 0:01:08]}  cxd5 {[%clk 0:01:40]} 24. Bg5 {[%clk 0:00:57]}  Rb8 {[%clk 0:01:19]} 25. Qxd5 {[%clk 0:00:54]}  Qxd5 {[%clk 0:01:18]} 26. cxd5 {[%clk 0:00:53]}  Kf7 {[%clk 0:01:13]} 27. Rhg3 {[%clk 0:00:50]}  Rb7 {[%clk 0:00:51]} 28. R3g2 {[%clk 0:00:40]}  Bf6 {[%clk 0:00:34]} 29. Bxf6 {[%clk 0:00:31]}  Kxf6 {[%clk 0:00:35]} 30. Rc1 {[%clk 0:00:28]}  Nfd7 {[%clk 0:00:33]} 31. Bf1 {[%clk 0:00:25]}  Rb4 {[%clk 0:00:27]} 32. Rc4 {[%clk 0:00:22]}  Rb8 {[%clk 0:00:25]} 33. Rgc2 {[%clk 0:00:21]}  g5 {[%clk 0:00:23]} 34. Bh3 {[%clk 0:00:19]}  Nb6 {[%clk 0:00:15]} 35. Rb4 {[%clk 0:00:12]}  gxh4 {[%clk 0:00:15]} 36. Rc3 {[%clk 0:00:07]}  Kg5 {[%clk 0:00:15]} 37. b3 {[%clk 0:00:06]}  Kf4 {[%clk 0:00:09]} 38. bxa4 {[%clk 0:00:06]}  Nbxa4 {[%clk 0:00:08]} 39. Rc4 {[%clk 0:00:04]}  Nc3+ {[%clk 0:00:07]} 40. Kc2 {[%clk 0:00:04]}  Rxb4 {[%clk 0:00:06]} 41. Rxb4 {[%clk 0:00:05]}  Ne2 {[%clk 0:00:02]} 42. Kd2 {[%clk 0:00:03]}  Nd4 {[%clk 0:00:02]} 43. a4 {[%clk 0:00:03]}  Kg3 {[%clk 0:00:01]} 44. Bd7 {[%clk 0:00:03]}  h3 {[%clk 0:00:01]} 45. Bxh3 {[%clk 0:00:03]}  Kxh3 {[%clk 0:00:02]} 46. a5 {[%clk 0:00:03]}  Kg3 {[%clk 0:00:02]} 47. Ke3 {[%clk 0:00:04]}  h4 {[%clk 0:00:02]} 48. Rb8 {[%clk 0:00:05]}  Nc2+ {[%clk 0:00:02]} 49. Kd2 {[%clk 0:00:05]}  Nd4 {[%clk 0:00:02]} 50. Rh8 {[%clk 0:00:04]}  h3 {[%clk 0:00:01]} 51. Ke3 {[%clk 0:00:04]}  Nc2+ {[%clk 0:00:02]} 52. Kd2 {[%clk 0:00:04]}  Nd4 {[%clk 0:00:02]} 53. Ke3 {[%clk 0:00:04]}  Nc2+ {[%clk 0:00:03]} 54. Kd2 {[%clk 0:00:04]}  Na3 {[%clk 0:00:03]} 55. Ke3 {[%clk 0:00:04]}  Nc4+ {[%clk 0:00:03]} 56. Ke2 {[%clk 0:00:04]}  Nxa5 {[%clk 0:00:04]} 57. Rg8+ {[%clk 0:00:05]}  Kh2 {[%clk 0:00:04]} 58. Kf2 {[%clk 0:00:04]}  Nc4 {[%clk 0:00:04]} 59. Rh8 {[%clk 0:00:04]}  Nd3+ {[%clk 0:00:05]} 60. Ke2 {[%clk 0:00:05]}  Nf4+ {[%clk 0:00:06]} 61. Kf2 {[%clk 0:00:05]}  Nb2 {[%clk 0:00:06]} 62. Ke3 {[%clk 0:00:05]}  Nd1+ {[%clk 0:00:06]} 63. Kd2 {[%clk 0:00:05]}  Nf2 {[%clk 0:00:07]} 64. Ke3 {[%clk 0:00:06]}  Kg1 {[%clk 0:00:06]} 65. Rg8+ {[%clk 0:00:04]}  Ng2+ {[%clk 0:00:07]} 66. Ke2 {[%clk 0:00:04]}  h2 {[%clk 0:00:07]} 67. Rh8 {[%clk 0:00:04]}  h1=Q {[%clk 0:00:08]} 68. Rxh1+ {[%clk 0:00:05]}  Kxh1 {[%clk 0:00:09]} 69. Kxf2 {[%clk 0:00:05]}  Kh2 {[%clk 0:00:10]} 70. Ke2 {[%clk 0:00:05]}  Kg3 {[%clk 0:00:10]} 71. Kd3 {[%clk 0:00:05]}  Kxf3 {[%clk 0:00:10]} 72. Kc4 {[%clk 0:00:06]}  Kxe4 {[%clk 0:00:11]} 73. Kb5 {[%clk 0:00:07]}  Kxd5 {[%clk 0:00:11]} 0-1


[Site "https://www.chess.com"]

[Event "Titled Tuesday Blitz February 22 Early 2022"]
[White "Novikov, Evgenij"]
[Black "Bernadskiy, Vitaliy"]
[WhiteFideId "4125380"]
[BlackFideId "14100371"]
[WhiteElo "2242"]
[BlackElo "2473"]
[Result "0-1"]
[Round "03"]
[TimeControl "180+1"]
[Date "2022.02.22"]
[WhiteClock "0:00:04"]
[BlackClock "0:00:17"]

1. e4 {[%clk 0:03:00]}  d5 {[%clk 0:02:57]} 2. exd5 {[%clk 0:02:58]}  Nf6 {[%clk 0:02:57]} 3. d4 {[%clk 0:02:57]}  Nxd5 {[%clk 0:02:56]} 4. Nf3 {[%clk 0:02:54]}  Bg4 {[%clk 0:02:55]} 5. h3 {[%clk 0:02:52]}  Bh5 {[%clk 0:02:53]} 6. Be2 {[%clk 0:02:43]}  e6 {[%clk 0:02:52]} 7. O-O {[%clk 0:02:43]}  Be7 {[%clk 0:02:52]} 8. c4 {[%clk 0:02:37]}  Nb6 {[%clk 0:02:52]} 9. Qb3 {[%clk 0:02:28]}  Nc6 {[%clk 0:02:47]} 10. Be3 {[%clk 0:02:06]}  O-O {[%clk 0:02:45]} 11. Nbd2 {[%clk 0:01:57]}  a5 {[%clk 0:02:43]} 12. a3 {[%clk 0:01:29]}  Bg6 {[%clk 0:02:36]} 13. Qc3 {[%clk 0:01:21]}  a4 {[%clk 0:02:34]} 14. Ne5 {[%clk 0:01:03]}  Nxe5 {[%clk 0:02:33]} 15. dxe5 {[%clk 0:01:03]}  Nd7 {[%clk 0:02:32]} 16. Rfe1 {[%clk 0:00:52]}  Bc5 {[%clk 0:02:32]} 17. Nf3 {[%clk 0:00:45]}  Bxe3 {[%clk 0:02:26]} 18. Qxe3 {[%clk 0:00:46]}  Qe7 {[%clk 0:02:27]} 19. Rad1 {[%clk 0:00:44]}  Nc5 {[%clk 0:02:26]} 20. Nd4 {[%clk 0:00:40]}  c6 {[%clk 0:02:25]} 21. Nf3 {[%clk 0:00:24]}  Rfd8 {[%clk 0:02:17]} 22. Rd4 {[%clk 0:00:14]}  Rxd4 {[%clk 0:02:12]} 23. Nxd4 {[%clk 0:00:14]}  Rd8 {[%clk 0:02:11]} 24. Nf3 {[%clk 0:00:13]}  Bc2 {[%clk 0:02:02]} 25. Rc1 {[%clk 0:00:12]}  Bb3 {[%clk 0:02:00]} 26. h4 {[%clk 0:00:12]}  h6 {[%clk 0:02:00]} 27. h5 {[%clk 0:00:10]}  b6 {[%clk 0:01:13]} 28. g4 {[%clk 0:00:10]}  Rd7 {[%clk 0:00:56]} 29. Kh2 {[%clk 0:00:10]}  Qd8 {[%clk 0:00:55]} 30. Rg1 {[%clk 0:00:10]}  Bd1 {[%clk 0:00:46]} 31. g5 {[%clk 0:00:08]}  Bxe2 {[%clk 0:00:45]} 32. Qxe2 {[%clk 0:00:06]}  hxg5 {[%clk 0:00:40]} 33. Rxg5 {[%clk 0:00:06]}  Rd3 {[%clk 0:00:37]} 34. h6 {[%clk 0:00:05]}  g6 {[%clk 0:00:34]} 35. Rg4 {[%clk 0:00:05]}  Qf8 {[%clk 0:00:29]} 36. Kg2 {[%clk 0:00:03]}  Qxh6 {[%clk 0:00:29]} 37. Ng5 {[%clk 0:00:04]}  Qh5 {[%clk 0:00:24]} 38. f4 {[%clk 0:00:03]}  Rd2 {[%clk 0:00:22]} 39. Qxd2 {[%clk 0:00:04]}  Qxg4+ {[%clk 0:00:23]} 40. Kh2 {[%clk 0:00:04]}  Kg7 {[%clk 0:00:21]} 41. Qd8 {[%clk 0:00:03]}  Qxf4+ {[%clk 0:00:21]} 42. Kh3 {[%clk 0:00:03]}  Qf5+ {[%clk 0:00:20]} 43. Kh2 {[%clk 0:00:03]}  Qxe5+ {[%clk 0:00:20]} 44. Kh3 {[%clk 0:00:04]}  Qf5+ {[%clk 0:00:19]} 45. Kh2 {[%clk 0:00:04]}  Qc2+ {[%clk 0:00:18]} 46. Kh3 {[%clk 0:00:04]}  Qd3+ {[%clk 0:00:17]} 47. Kh2 {[%clk 0:00:04]}  Qxd8 {[%clk 0:00:17]} 0-1


[Site "https://www.chess.com"]

[Event "Titled Tuesday Blitz February 22 Early 2022"]
[White "Oparin, Grigoriy"]
[Black "Pultinevicius, Paulius"]
[WhiteFideId "24125890"]
[BlackFideId "12809390"]
[WhiteElo "2685"]
[BlackElo "2413"]
[Result "0-1"]
[Round "03"]
[TimeControl "180+1"]
[Date "2022.02.22"]
[WhiteClock "0:00:08"]
[BlackClock "0:00:04"]

1. d4 {[%clk 0:03:00]}  Nf6 {[%clk 0:02:58]} 2. c4 {[%clk 0:03:01]}  g6 {[%clk 0:02:55]} 3. Nf3 {[%clk 0:03:00]}  Bg7 {[%clk 0:02:55]} 4. g3 {[%clk 0:03:01]}  O-O {[%clk 0:02:55]} 5. Bg2 {[%clk 0:03:02]}  c6 {[%clk 0:02:55]} 6. O-O {[%clk 0:03:01]}  d5 {[%clk 0:02:56]} 7. a4 {[%clk 0:03:01]}  a5 {[%clk 0:02:28]} 8. Nc3 {[%clk 0:02:58]}  dxc4 {[%clk 0:02:24]} 9. e4 {[%clk 0:02:59]}  Na6 {[%clk 0:02:21]} 10. Qe2 {[%clk 0:02:59]}  Nb4 {[%clk 0:02:17]} 11. Rd1 {[%clk 0:02:51]}  b6 {[%clk 0:01:46]} 12. Ne5 {[%clk 0:02:49]}  Ba6 {[%clk 0:01:41]} 13. Nxc4 {[%clk 0:02:47]}  Ne8 {[%clk 0:01:41]} 14. b3 {[%clk 0:02:44]}  Bxd4 {[%clk 0:01:33]} 15. e5 {[%clk 0:02:37]}  c5 {[%clk 0:01:27]} 16. Bh6 {[%clk 0:02:32]}  Ng7 {[%clk 0:01:19]} 17. Nb5 {[%clk 0:02:09]}  Bxb5 {[%clk 0:01:04]} 18. axb5 {[%clk 0:02:10]}  Ra7 {[%clk 0:01:04]} 19. Rac1 {[%clk 0:02:04]}  Rd7 {[%clk 0:00:59]} 20. h4 {[%clk 0:02:03]}  Re8 {[%clk 0:00:55]} 21. Bxg7 {[%clk 0:01:51]}  Kxg7 {[%clk 0:00:55]} 22. Rd2 {[%clk 0:01:51]}  Qc7 {[%clk 0:00:50]} 23. Rcd1 {[%clk 0:01:50]}  Red8 {[%clk 0:00:49]} 24. Kh2 {[%clk 0:01:51]}  e6 {[%clk 0:00:45]} 25. h5 {[%clk 0:01:50]}  Nd5 {[%clk 0:00:43]} 26. Qg4 {[%clk 0:01:09]}  Bxe5 {[%clk 0:00:41]} 27. Qg5 {[%clk 0:00:36]}  Bf6 {[%clk 0:00:31]} 28. h6+ {[%clk 0:00:37]}  Kg8 {[%clk 0:00:31]} 29. Qg4 {[%clk 0:00:35]}  Bd4 {[%clk 0:00:24]} 30. Rd3 {[%clk 0:00:26]}  Bh8 {[%clk 0:00:15]} 31. Re1 {[%clk 0:00:24]}  Nf6 {[%clk 0:00:15]} 32. Qg5 {[%clk 0:00:22]}  Rxd3 {[%clk 0:00:14]} 33. f4 {[%clk 0:00:21]}  Rxb3 {[%clk 0:00:03]} 34. Bh3 {[%clk 0:00:21]}  Rc3 {[%clk 0:00:03]} 35. Rxe6 {[%clk 0:00:20]}  Rc2+ {[%clk 0:00:03]} 36. Bg2 {[%clk 0:00:16]}  fxe6 {[%clk 0:00:02]} 37. Ne3 {[%clk 0:00:16]}  Rxg2+ {[%clk 0:00:02]} 38. Nxg2 {[%clk 0:00:16]}  Qf7 {[%clk 0:00:02]} 39. f5 {[%clk 0:00:16]}  exf5 {[%clk 0:00:02]} 40. Qf4 {[%clk 0:00:16]}  Ng4+ {[%clk 0:00:02]} 41. Kh3 {[%clk 0:00:16]}  Nf6 {[%clk 0:00:02]} 42. Nh4 {[%clk 0:00:17]}  Rf8 {[%clk 0:00:02]} 43. Qf3 {[%clk 0:00:17]}  Qe6 {[%clk 0:00:02]} 44. Qb7 {[%clk 0:00:17]}  f4+ {[%clk 0:00:02]} 45. Kh2 {[%clk 0:00:18]}  Qe2+ {[%clk 0:00:02]} 46. Kh3 {[%clk 0:00:17]}  Qe4 {[%clk 0:00:03]} 47. Qxe4 {[%clk 0:00:08]}  Nxe4 {[%clk 0:00:04]} 48. gxf4 {[%clk 0:00:08]}  Rxf4 {[%clk 0:00:04]} 0-1


[Site "https://www.chess.com"]

[Event "Titled Tuesday Blitz February 22 Early 2022"]
[White "Pajeken, Jakob Leon"]
[Black "Singh, Arvinder Preet"]
[WhiteFideId "12942839"]
[BlackFideId "5013240"]
[WhiteElo "2351"]
[BlackElo "2147"]
[Result "1-0"]
[Round "03"]
[TimeControl "180+1"]
[Date "2022.02.22"]
[WhiteClock "0:00:59"]
[BlackClock "0:00:25"]

1. d4 {[%clk 0:02:56]}  f5 {[%clk 0:02:59]} 2. Nf3 {[%clk 0:02:57]}  Nf6 {[%clk 0:02:59]} 3. g3 {[%clk 0:02:54]}  g6 {[%clk 0:02:59]} 4. Bg2 {[%clk 0:02:55]}  Bg7 {[%clk 0:02:59]} 5. O-O {[%clk 0:02:56]}  O-O {[%clk 0:03:00]} 6. b3 {[%clk 0:02:56]}  d6 {[%clk 0:03:00]} 7. Bb2 {[%clk 0:02:55]}  c6 {[%clk 0:03:01]} 8. c4 {[%clk 0:02:54]}  Na6 {[%clk 0:02:57]} 9. Qc2 {[%clk 0:02:53]}  Bd7 {[%clk 0:02:54]} 10. Nc3 {[%clk 0:02:51]}  Qe8 {[%clk 0:02:50]} 11. Rac1 {[%clk 0:02:44]}  Rc8 {[%clk 0:02:44]} 12. Rfd1 {[%clk 0:02:43]}  b5 {[%clk 0:02:41]} 13. Qb1 {[%clk 0:02:41]}  b4 {[%clk 0:02:36]} 14. Na4 {[%clk 0:02:39]}  c5 {[%clk 0:02:33]} 15. dxc5 {[%clk 0:02:37]}  Bxa4 {[%clk 0:02:31]} 16. bxa4 {[%clk 0:02:32]}  Nxc5 {[%clk 0:02:29]} 17. Bxf6 {[%clk 0:02:31]}  Bxf6 {[%clk 0:02:29]} 18. Qxb4 {[%clk 0:02:32]}  Qxa4 {[%clk 0:02:27]} 19. Qxa4 {[%clk 0:02:31]}  Nxa4 {[%clk 0:02:27]} 20. Nd4 {[%clk 0:02:30]}  Nb2 {[%clk 0:02:25]} 21. Rd2 {[%clk 0:02:28]}  Na4 {[%clk 0:02:00]} 22. Bd5+ {[%clk 0:02:26]}  Kh8 {[%clk 0:02:00]} 23. Ne6 {[%clk 0:02:23]}  Rfe8 {[%clk 0:01:57]} 24. Rb1 {[%clk 0:02:18]}  Nb6 {[%clk 0:01:57]} 25. a4 {[%clk 0:02:06]}  Nxc4 {[%clk 0:01:44]} 26. Rc2 {[%clk 0:02:01]}  Nb6 {[%clk 0:01:44]} 27. Bc6 {[%clk 0:02:00]}  Rg8 {[%clk 0:01:24]} 28. a5 {[%clk 0:01:58]}  Nd7 {[%clk 0:01:17]} 29. Rb7 {[%clk 0:01:50]}  Ne5 {[%clk 0:01:17]} 30. Ba4 {[%clk 0:01:49]}  Rxc2 {[%clk 0:01:16]} 31. Bxc2 {[%clk 0:01:50]}  Ra8 {[%clk 0:01:06]} 32. Rc7 {[%clk 0:01:44]}  Kg8 {[%clk 0:01:05]} 33. Bb3 {[%clk 0:01:44]}  h6 {[%clk 0:01:01]} 34. f4 {[%clk 0:01:38]}  Ng4 {[%clk 0:00:56]} 35. h3 {[%clk 0:01:36]}  Ne3 {[%clk 0:00:45]} 36. Kf2 {[%clk 0:01:35]}  Rb8 {[%clk 0:00:46]} 37. Nd4+ {[%clk 0:01:34]}  Kf8 {[%clk 0:00:36]} 38. Ne6+ {[%clk 0:01:30]}  Kg8 {[%clk 0:00:30]} 39. Ba2 {[%clk 0:01:27]}  Nd1+ {[%clk 0:00:27]} 40. Kf3 {[%clk 0:01:19]}  Nc3 {[%clk 0:00:28]} 41. Bc4 {[%clk 0:01:11]}  Rb1 {[%clk 0:00:26]} 42. Rc8+ {[%clk 0:01:06]}  Kh7 {[%clk 0:00:26]} 43. Nf8+ {[%clk 0:01:00]}  Kg7 {[%clk 0:00:25]} 44. Nd7 {[%clk 0:00:59]}  Bd4 {[%clk 0:00:25]} 45. Rg8+ {[%clk 0:00:58]}  Kh7 {[%clk 0:00:25]} 46. Nf8# {[%clk 0:00:59]} 1-0


[Site "https://www.chess.com"]

[Event "Titled Tuesday Blitz February 22 Early 2022"]
[White "Palu, Andres"]
[Black "Do Nascimento,Christian Almeida"]
[WhiteFideId "119288"]
[BlackFideId "2143801"]
[WhiteElo "2050"]
[BlackElo "2108"]
[Result "0-1"]
[Round "03"]
[TimeControl "180+1"]
[Date "2022.02.22"]
[WhiteClock "0:00:08"]
[BlackClock "0:00:14"]

1. e4 {[%clk 0:02:59]}  c5 {[%clk 0:02:56]} 2. c3 {[%clk 0:02:59]}  d5 {[%clk 0:02:55]} 3. exd5 {[%clk 0:02:57]}  Qxd5 {[%clk 0:02:56]} 4. Nf3 {[%clk 0:02:57]}  Nf6 {[%clk 0:02:56]} 5. Na3 {[%clk 0:02:58]}  Nc6 {[%clk 0:02:52]} 6. Bc4 {[%clk 0:02:57]}  Qd8 {[%clk 0:02:52]} 7. d4 {[%clk 0:02:57]}  cxd4 {[%clk 0:02:52]} 8. cxd4 {[%clk 0:02:58]}  e6 {[%clk 0:02:50]} 9. Bf4 {[%clk 0:02:57]}  Bb4+ {[%clk 0:02:43]} 10. Bd2 {[%clk 0:02:51]}  O-O {[%clk 0:02:30]} 11. Bxb4 {[%clk 0:02:47]}  Nxb4 {[%clk 0:02:31]} 12. O-O {[%clk 0:02:47]}  Bd7 {[%clk 0:02:26]} 13. Ne5 {[%clk 0:02:46]}  Bc6 {[%clk 0:02:22]} 14. Qd2 {[%clk 0:02:28]}  a5 {[%clk 0:02:09]} 15. Rfe1 {[%clk 0:02:21]}  Bd5 {[%clk 0:02:06]} 16. b3 {[%clk 0:02:14]}  Nc6 {[%clk 0:01:58]} 17. Rad1 {[%clk 0:02:00]}  Qe7 {[%clk 0:01:46]} 18. Nb5 {[%clk 0:01:54]}  Rfd8 {[%clk 0:01:43]} 19. Qf4 {[%clk 0:01:49]}  a4 {[%clk 0:01:30]} 20. Nxc6 {[%clk 0:01:36]}  bxc6 {[%clk 0:01:09]} 21. Nc3 {[%clk 0:01:01]}  axb3 {[%clk 0:00:57]} 22. axb3 {[%clk 0:01:02]}  Qb4 {[%clk 0:00:54]} 23. Bxd5 {[%clk 0:00:46]}  Nxd5 {[%clk 0:00:47]} 24. Nxd5 {[%clk 0:00:43]}  Rxd5 {[%clk 0:00:42]} 25. Qe3 {[%clk 0:00:36]}  Rad8 {[%clk 0:00:40]} 26. Rc1 {[%clk 0:00:35]}  Qb6 {[%clk 0:00:31]} 27. h3 {[%clk 0:00:22]}  h6 {[%clk 0:00:28]} 28. Qc3 {[%clk 0:00:20]}  R5d6 {[%clk 0:00:24]} 29. Re3 {[%clk 0:00:18]}  Qxd4 {[%clk 0:00:19]} 30. Qxd4 {[%clk 0:00:18]}  Rxd4 {[%clk 0:00:20]} 31. Rxc6 {[%clk 0:00:18]}  Rd1+ {[%clk 0:00:19]} 32. Kh2 {[%clk 0:00:18]}  R1d2 {[%clk 0:00:20]} 33. Rf3 {[%clk 0:00:16]}  R8d7 {[%clk 0:00:19]} 34. Rc8+ {[%clk 0:00:17]}  Kh7 {[%clk 0:00:19]} 35. Rcc3 {[%clk 0:00:16]}  Rb2 {[%clk 0:00:19]} 36. Rcd3 {[%clk 0:00:16]}  Rb7 {[%clk 0:00:18]} 37. Rc3 {[%clk 0:00:16]}  f5 {[%clk 0:00:19]} 38. Rfe3 {[%clk 0:00:15]}  Rb6 {[%clk 0:00:16]} 39. f4 {[%clk 0:00:13]}  Kg6 {[%clk 0:00:16]} 40. Kg3 {[%clk 0:00:14]}  Kf6 {[%clk 0:00:16]} 41. Rcd3 {[%clk 0:00:12]}  Rc6 {[%clk 0:00:15]} 42. Rc3 {[%clk 0:00:13]}  Rd6 {[%clk 0:00:14]} 43. Red3 {[%clk 0:00:13]}  Rxd3+ {[%clk 0:00:14]} 44. Rxd3 {[%clk 0:00:13]}  g5 {[%clk 0:00:15]} 45. fxg5+ {[%clk 0:00:12]}  hxg5 {[%clk 0:00:15]} 46. Rc3 {[%clk 0:00:11]}  Ke5 {[%clk 0:00:16]} 47. Kf3 {[%clk 0:00:12]}  Kd4 {[%clk 0:00:15]} 48. Re3 {[%clk 0:00:13]}  g4+ {[%clk 0:00:14]} 49. hxg4 {[%clk 0:00:08]}  fxg4+ {[%clk 0:00:15]} 50. Kf4 {[%clk 0:00:08]}  e5+ {[%clk 0:00:14]} 0-1


[Site "https://www.chess.com"]